bitfinex/quotes_ETHUSD_20241105
["timestamp","ask_amount","ask_price","bid_price","bid_amount"]
[1730789631821,11.22448,2431.8,2431.5,0.32648978]
[1730789632021,7.11222,2431.8,2431.5,0.32649122]
[1730789632265,4.11192,2432.0,2431.6,0.32645246]
[1730789632448,4.11192,2432.0,2431.7,1.08255246]
[1730789632772,4.88789,2432.1,2431.8,0.3264354]
[1730789633100,4.11169,2432.1,2431.9,0.09419977]
[1730789633677,4.11169,2432.1,2431.7,4.86843]
[1730789633828,4.11169,2432.1,2431.8,0.32631882]
[1730789634181,4.11169,2432.1,2431.8,0.09419977]
[1730789634339,4.88757,2432.3,2431.7,4.86833]
[1730789634676,4.17168,2432.4,2431.9,4.11186]
[1730789634873,4.17168,2432.4,2431.8,4.53258333]
[1730789634874,4.1114,2432.3,2432.0,0.32622356]
[1730789635166,4.1114,2432.3,2432.0,0.09370991]
[1730789635373,8.22285,2432.3,2431.8,4.1121]
[1730789635668,4.1114,2432.3,2431.9,0.09370991]
[1730789636030,4.17161,2432.4,2432.0,0.8203]
[1730789636287,4.11134,2432.3,2432.0,0.8203]
[1730789636634,4.11134,2432.3,2432.1,0.09370991]
[1730789638769,0.06044,2432.4,2432.1,0.09370991]
[1730789638971,4.17161,2432.4,2432.1,0.09370991]
[1730789640696,0.06044,2432.4,2432.1,4.20526991]
[1730789640860,0.06044,2432.4,2432.1,1.45965008]
[1730789641061,0.06044,2432.4,2432.1,0.09370991]
[1730789641275,4.17161,2432.4,2432.1,0.09370991]
[1730789641588,4.11136,2432.3,2432.1,0.09370991]
[1730789641812,4.11136,2432.3,2431.8,4.92385]
[1730789641958,4.11136,2432.3,2431.9,0.74385728]
[1730789642158,4.11136,2432.3,2431.9,0.41829876]
[1730789642367,4.17161,2432.4,2431.9,4.53021876]
[1730789644380,8.28286,2432.4,2431.9,4.53021876]
[1730789644584,4.17161,2432.4,2431.9,4.53021876]
[1730789644795,4.17161,2432.4,2431.9,0.41829876]
[1730789645102,0.7973,2432.3,2431.9,0.41829876]
[1730789645711,0.7973,2432.3,2431.9,4.53029876]
[1730789645917,0.7973,2432.3,2431.9,0.41829876]
[1730789646095,4.90868,2432.3,2431.9,0.41829876]
[1730789646302,4.11167,2432.1,2431.9,0.41829876]
[1730789646673,4.11167,2432.1,2431.9,0.09274024]
[1730789646872,4.11184,2432.0,2431.9,0.09274024]
[1730789647117,4.87214,2432.0,2431.9,0.09274024]
[1730789647409,4.87214,2432.0,2431.9,0.0925903]
[1730789647713,4.87214,2432.0,2431.6,0.833]
[1730789647916,4.87214,2432.0,2431.9,0.0925903]
[1730789648207,5.770521,2432.0,2431.9,0.09268025]
[1730789648394,5.770521,2432.0,2431.6,0.833]
[1730789648597,4.87214,2432.0,2431.7,0.09268025]
[1730789649013,4.11202,2431.9,2431.7,0.09268025]
[1730789649187,4.11202,2431.9,2431.5,0.32579688]
[1730789649375,4.11202,2431.9,2431.6,0.09274022]
[1730789650006,4.11202,2431.9,2431.4,9.05847]
[1730789650307,4.11202,2431.9,2431.5,0.41251846]
[1730789650517,4.11202,2431.9,2431.6,0.32585595]
[1730789650678,4.11202,2431.9,2431.5,0.08666251]
[1730789651014,4.87219,2432.0,2431.6,0.32591501]
[1730789651320,4.87219,2432.0,2431.7,0.08377376]
[1730789651498,5.90717002,2432.0,2431.7,0.08377376]
[1730789651815,5.90717002,2432.0,2431.8,0.08377376]
[1730789652021,5.90717002,2432.0,2431.6,0.32596733]
[1730789652205,5.90717002,2432.0,2431.5,4.11258]
[1730789652405,5.90717002,2432.0,2431.6,0.32603735]
[1730789652734,5.90717002,2432.0,2431.7,0.08377376]
[1730789653013,5.90717002,2432.0,2431.5,4.11258]
[1730789653216,5.90717002,2432.0,2431.6,0.40981139]
[1730789653413,5.90717002,2432.0,2431.6,0.08377376]
[1730789654322,0.7603,2432.0,2431.7,0.32644656]
[1730789654521,0.7603,2432.0,2431.6,4.19625376]
[1730789654704,0.7603,2432.0,2431.7,0.32646477]
[1730789654882,0.7603,2432.0,2431.7,0.08377376]
[1730789654883,4.87216,2432.0,2431.7,0.08377376]
[1730789655411,4.87216,2432.0,2431.8,0.08377376]
[1730789655656,5.68849639,2432.0,2431.5,4.11258]
[1730789655815,0.7603,2432.0,2431.9,0.08377376]
[1730789656022,4.87214,2432.0,2431.5,4.11258]
[1730789656181,4.11206,2431.9,2431.6,0.08377376]
[1730789656378,4.11206,2431.9,2431.6,0.32654005]
[1730789656617,4.11206,2431.9,2431.7,0.08407359]
[1730789656778,4.11206,2431.9,2431.4,4.94583]
[1730789656981,4.11206,2431.9,2431.5,0.08407359]
[1730789657717,8.98406,2432.0,2431.5,4.19673359]
[1730789658092,4.11213,2431.9,2431.5,0.08407359]
[1730789658287,4.11213,2431.9,2431.6,0.32655826]
[1730789658482,4.11213,2431.9,2431.7,0.32655826]
[1730789658685,4.11213,2431.9,2431.4,4.94584]
[1730789658915,4.11213,2431.9,2431.8,0.08407359]
[1730789659214,5.010439,2431.9,2431.8,0.08407359]
[1730789659425,5.010439,2431.9,2431.4,4.94584]
[1730789659426,5.010439,2431.9,2431.4,4.94576]
[1730789659627,4.11201,2431.9,2431.5,0.5226159]
[1730789659809,0.7603,2432.0,2431.6,5.88730363]
[1730789660013,3.7564,2432.2,2431.8,4.11215]
[1730789660217,7.86791,2432.2,2431.9,0.41074343]
[1730789660417,7.86791,2432.2,2431.9,0.08407359]
[1730789660418,3.7564,2432.2,2431.9,0.08407359]
[1730789660815,0.06044,2432.4,2432.0,0.32666396]
[1730789660816,0.81684,2432.4,2432.0,0.32666396]
[1730789661018,4.92802,2432.4,2432.1,0.7886]
[1730789661204,6.78702046,2432.4,2432.2,0.08407359]
[1730789661402,4.11133,2432.3,2432.2,0.08407359]
[1730789661930,4.11133,2432.3,2431.9,0.7886]
[1730789662229,9.0393,2432.4,2432.0,0.32670711]
[1730789662431,4.11134,2432.3,2432.1,0.32670711]
[1730789662590,4.11134,2432.3,2432.1,0.08393366]
[1730789662793,4.11134,2432.3,2431.9,0.7886]
[1730789663036,4.11134,2432.3,2432.0,0.41069602]
[1730789663341,4.92802,2432.4,2432.1,0.32676236]
[1730789663535,4.92802,2432.4,2432.0,0.08393366]
[1730789663839,0.06044,2432.4,2432.1,4.19557367]
[1730789664125,0.06044,2432.4,2432.1,0.08392367]
[1730789665398,0.06044,2432.4,2432.1,4.19555367]
[1730789665594,0.06044,2432.4,2432.2,0.32671371]
[1730789665794,0.06044,2432.4,2432.2,0.7905]
[1730789666126,0.06044,2432.4,2432.3,0.08385371]
[1730789666304,0.06044,2432.4,2432.2,0.7905]
[1730789666504,0.06044,2432.4,2432.3,0.08385371]
[1730789667707,0.06044,2432.4,2432.0,4.889]
[1730789667913,0.06044,2432.4,2432.3,0.08385371]
[1730789668099,0.06044,2432.4,2432.0,4.889]
[1730789668299,0.06044,2432.4,2432.3,0.08378376]
[1730789668629,0.06044,2432.4,2432.0,4.889]
[1730789668935,0.06044,2432.4,2432.1,0.32668208]
[1730789669128,4.1717,2432.4,2432.2,0.32668208]
[1730789669429,0.7724,2432.3,2432.0,0.7772]
[1730789669609,0.7724,2432.3,2432.1,0.32669041]
[1730789669803,0.7724,2432.3,2432.0,0.7772]
[1730789670133,0.7724,2432.3,2432.1,0.32669086]
[1730789670431,0.7724,2432.3,2432.0,0.7772]
[1730789670656,4.88373,2432.3,2431.8,4.91726]
[1730789670831,4.88373,2432.3,2431.9,0.3266917]
[1730789671044,4.88373,2432.3,2431.8,4.91726]
[1730789671239,0.7724,2432.3,2431.8,0.8051]
[1730789671532,0.7724,2432.3,2431.9,4.43869817]
[1730789671836,0.7724,2432.3,2432.0,0.32669817]
[1730789672136,0.7724,2432.3,2432.1,0.32669817]
[1730789672321,0.7724,2432.3,2431.9,4.112]
[1730789672522,0.7724,2432.3,2432.0,0.32670388]
[1730789672691,0.7724,2432.3,2432.1,0.32670388]
[1730789672894,0.7724,2432.3,2431.9,4.112]
[1730789673167,4.88374,2432.3,2432.0,0.32670721]
[1730789673306,4.88374,2432.3,2431.8,4.91719]
[1730789673510,4.88374,2432.3,2431.9,4.43872265]
[1730789673712,4.88374,2432.3,2432.0,0.32671265]
[1730789673713,4.11151,2432.2,2432.0,0.32671265]
[1730789673921,0.7658,2432.1,2432.0,0.0835339]
[1730789674297,0.7658,2432.1,2431.7,4.11225]
[1730789674493,0.7658,2432.1,2432.0,0.0835339]
[1730789674721,0.7658,2432.1,2431.7,8.22452]
[1730789674921,0.7658,2432.1,2432.0,0.0835339]
[1730789675197,0.7658,2432.1,2431.7,4.11225]
[1730789675431,5.21760588,2432.4,2432.1,4.11166]
[1730789675795,5.21760588,2432.4,2432.2,0.08360386]
[1730789677538,2.21760588,2432.4,2432.1,4.11166]
[1730789677701,2.21760588,2432.4,2432.3,0.08358387]
[1730789678271,2.21760588,2432.4,2432.1,4.11166]
[1730789678481,2.21760588,2432.4,2432.3,0.08341399]
[1730789678640,2.21760588,2432.4,2432.1,4.11166]
[1730789678834,2.21760588,2432.4,2432.2,0.08341399]
[1730789678835,0.06044,2432.4,2432.2,0.08341399]
[1730789680948,0.06044,2432.4,2432.0,4.92512]
[1730789681146,0.06044,2432.4,2432.3,0.08341399]
[1730789681643,0.06044,2432.4,2432.1,4.11165]
[1730789681988,0.06044,2432.4,2432.2,0.41013192]
[1730789682171,0.06044,2432.4,2432.2,0.08341399]
[1730789682573,0.06044,2432.4,2432.0,4.92512]
[1730789682743,4.1716,2432.4,2432.3,0.08341399]
[1730789682941,4.1716,2432.4,2431.9,8.22382]
[1730789683169,4.1716,2432.4,2432.3,0.08341399]
[1730789683383,4.1716,2432.4,2432.0,4.96138768]
[1730789683384,4.1716,2432.4,2432.0,4.11182]
[1730789683553,4.1716,2432.4,2432.3,0.0805436]
[1730789683743,0.06044,2432.4,2432.0,4.11182]
[1730789683944,0.06044,2432.4,2432.3,0.0805436]
[1730789684140,0.06044,2432.4,2432.0,4.11182]
[1730789684380,0.06044,2432.4,2432.3,0.0805436]
[1730789684881,0.06044,2432.4,2432.0,4.11182]
[1730789685177,0.06044,2432.4,2432.3,0.0805436]
[1730789685390,0.06044,2432.4,2432.0,4.11182]
[1730789685585,0.06044,2432.4,2432.3,0.0805436]
[1730789685806,0.06044,2432.4,2432.0,4.11182]
[1730789685982,0.06044,2432.4,2432.3,0.0805436]
[1730789686181,0.06044,2432.4,2432.0,4.11182]
[1730789686489,4.17162,2432.4,2432.1,0.32687641]
[1730789686694,4.17162,2432.4,2432.0,4.11182]
[1730789686996,4.17162,2432.4,2432.2,0.0805436]
[1730789687189,4.17162,2432.4,2432.0,4.11182]
[1730789687386,4.17162,2432.4,2432.3,0.0805436]
[1730789687602,4.17162,2432.4,2432.0,4.11182]
[1730789687802,4.17162,2432.4,2432.3,0.0805436]
[1730789688261,4.17162,2432.4,2432.0,4.11182]
[1730789688567,4.17162,2432.4,2432.3,0.0805436]
[1730789688762,4.17162,2432.4,2432.0,4.11182]
[1730789688965,4.17162,2432.4,2432.3,0.0805436]
[1730789689164,4.17162,2432.4,2432.0,4.11182]
[1730789689376,4.17162,2432.4,2432.3,0.0805436]
[1730789689805,4.17162,2432.4,2432.0,4.11182]
[1730789690009,4.17162,2432.4,2432.3,0.0805436]
[1730789690305,4.17162,2432.4,2432.3,0.40765385]
[1730789691573,4.17162,2432.4,2432.0,4.11182]
[1730789691797,4.17162,2432.4,2432.3,0.0805436]
[1730789691997,3.792,2432.1,2431.6,4.92272]
[1730789692311,4.90334,2432.3,2431.8,9.03448]
[1730789692666,4.90334,2432.3,2431.9,0.92926784]
[1730789692868,4.90334,2432.3,2432.0,0.85047661]
[1730789693068,4.90334,2432.3,2432.1,0.32710368]
[1730789693349,7.90334,2432.3,2432.2,0.32710368]
[1730789693533,7.90334,2432.3,2431.8,4.92238]
[1730789693734,7.90334,2432.3,2431.9,0.85046698]
[1730789693921,4.11152,2432.2,2432.0,0.32709998]
[1730789694121,4.11152,2432.2,2432.1,0.32709998]
[1730789694333,4.11152,2432.2,2432.1,0.40598115]
[1730789696456,12.01481,2432.3,2432.1,0.40598115]
[1730789696660,12.01481,2432.3,2432.2,0.32709998]
[1730789697033,12.01481,2432.3,2432.2,0.40594118]
[1730789697242,12.01481,2432.3,2432.2,0.0788412]
[1730789697553,4.11155,2432.2,2431.8,4.92247]
[1730789697929,4.11155,2432.2,2431.9,0.85040187]
[1730789698130,4.11155,2432.2,2432.0,0.85040187]
[1730789698358,4.11155,2432.2,2432.1,0.32707495]
[1730789700661,4.11155,2432.2,2431.8,4.92247]
[1730789700867,4.11155,2432.2,2432.1,0.3270715]
[1730789701030,4.11174,2432.1,2431.6,6.24075017]
[1730789701231,4.11174,2432.1,2431.7,1.15881944]
[1730789701432,4.11174,2432.1,2431.8,0.8504076]
[1730789701644,4.11174,2432.1,2431.9,0.8504076]
[1730789701846,4.11174,2432.1,2432.0,0.32707714]
[1730789702842,7.9034,2432.3,2432.0,0.32707714]
[1730789703028,4.11159,2432.2,2432.1,0.32707714]
[1730789703956,4.11159,2432.2,2432.1,0.4061082]
[1730789704882,4.11159,2432.2,2432.1,0.07903106]
[1730789704883,9.656533,2432.2,2432.1,0.07903106]
[1730789705373,4.88981,2431.8,2431.6,1.00850668]
[1730789705696,4.88981,2431.8,2431.7,0.32704048]
[1730789706169,7.88981,2431.8,2431.7,0.32704048]
[1730789706355,3.0,2431.7,2431.3,0.52303495]
[1730789706531,3.0,2431.7,2431.4,0.84992568]
[1730789706731,3.0,2431.7,2431.5,0.32689073]
[1730789706933,3.0,2431.7,2431.6,0.32689073]
[1730789707427,7.11237,2431.7,2431.3,4.11298]
[1730789707628,7.11237,2431.7,2431.4,0.8496253]
[1730789707833,7.11237,2431.7,2431.5,0.32677626]
[1730789708068,7.11237,2431.7,2431.2,5.47905017]
[1730789708315,7.11237,2431.7,2431.3,0.84962202]
[1730789708566,7.11237,2431.7,2431.4,0.326775]
[1730789708789,7.11237,2431.7,2431.5,0.326775]
[1730789708970,7.11237,2431.7,2431.3,0.52271783]
[1730789709272,7.11202,2431.9,2431.5,0.7862]
[1730789709477,7.11202,2431.9,2431.6,0.32669394]
[1730789709637,7.11202,2431.9,2431.5,0.7862]
[1730789709840,7.11202,2431.9,2431.6,0.32662466]
[1730789710069,7.11202,2431.9,2431.5,0.7862]
[1730789710275,6.70372923,2432.1,2431.6,5.80502373]
[1730789710429,6.70372923,2432.1,2431.7,0.32656549]
[1730789710837,2.15996602,2431.8,2431.6,6.00086674]
[1730789711140,2.15996602,2431.8,2431.7,0.32656538]
[1730789711354,2.59195923,2432.0,2431.7,0.32656538]
[1730789711667,8.22354,2432.1,2431.8,0.32656538]
[1730789711984,4.11177,2432.1,2431.7,0.758]
[1730789712162,4.11177,2432.1,2431.8,0.32655785]
[1730789712339,4.11177,2432.1,2431.7,0.758]
[1730789712538,8.22353,2432.1,2431.8,0.32656006]
[1730789712850,4.11176,2432.1,2431.7,0.758]
[1730789713051,4.11176,2432.1,2431.8,0.32652919]
[1730789713378,4.11176,2432.1,2431.7,0.758]
[1730789713551,8.22351,2432.1,2431.8,0.32653477]
[1730789713747,8.22351,2432.1,2431.7,0.758]
[1730789714079,4.11175,2432.1,2431.8,0.32653914]
[1730789714260,4.11175,2432.1,2431.7,4.87031]
[1730789714467,4.1115,2432.2,2431.8,0.32652384]
[1730789714635,7.11141,2432.3,2431.8,0.32652384]
[1730789714636,7.11141,2432.3,2431.9,0.32652384]
[1730789714976,7.11141,2432.3,2432.0,0.40602459]
[1730789715179,7.11141,2432.3,2432.0,0.91200075]
[1730789715538,11.22287,2432.3,2432.0,0.91200075]
[1730789715738,2.15999134,2432.1,2432.0,0.91200075]
[1730789716580,2.15999134,2432.1,2432.0,0.07950075]
[1730789716816,4.11152,2432.2,2431.8,4.87499]
[1730789717078,4.11152,2432.2,2432.0,0.07947077]
[1730789717279,4.11152,2432.2,2431.8,0.7629]
[1730789717437,4.11152,2432.2,2431.9,0.32653248]
[1730789717641,4.11152,2432.2,2431.8,0.7629]
[1730789717884,4.11152,2432.2,2431.9,0.3265309]
[1730789718072,4.11152,2432.2,2431.8,0.7629]
[1730789718243,4.11152,2432.2,2431.9,0.40600391]
[1730789718463,4.11152,2432.2,2431.9,0.07947077]
[1730789723515,11.22278,2432.3,2431.9,0.07947077]
[1730789723822,4.1115,2432.2,2431.9,0.07947077]
[1730789724116,4.11167,2432.1,2431.9,0.07947077]
[1730789724913,13.38165348,2432.3,2431.9,0.07947077]
[1730789725120,4.11152,2432.2,2431.9,0.07947077]
[1730789726023,4.11152,2432.2,2432.0,0.32645978]
[1730789726325,4.11152,2432.2,2432.1,0.07934083]
[1730789726523,4.11152,2432.2,2431.8,0.7629]
[1730789726722,4.11152,2432.2,2432.1,0.07934083]
[1730789727021,4.11152,2432.2,2431.8,4.87506]
[1730789727223,4.11152,2432.2,2432.1,0.07934083]
[1730789727826,4.11152,2432.2,2431.8,4.87506]
[1730789728022,4.11152,2432.2,2432.1,0.07934083]
[1730789728190,4.11152,2432.2,2431.8,4.87506]
[1730789728394,4.11152,2432.2,2432.1,0.07934083]
[1730789728595,4.11152,2432.2,2431.8,4.87506]
[1730789728927,4.93954,2432.4,2431.9,0.3265203]
[1730789729127,4.17174,2432.4,2432.0,1.0962203]
[1730789729293,4.17174,2432.4,2432.0,0.84893089]
[1730789729492,4.17172,2432.4,2432.0,0.84893089]
[1730789730027,4.1716,2432.4,2432.0,0.84893089]
[1730789730224,4.11136,2432.3,2432.0,0.84893089]
[1730789734271,4.1716,2432.4,2432.0,0.84893089]
[1730789734431,8.28285,2432.4,2432.0,0.84893089]
[1730789734630,8.2829,2432.4,2432.0,0.84893089]
[1730789735070,4.1716,2432.4,2432.0,0.84893089]
[1730789735578,4.1716,2432.4,2432.0,4.96073089]
[1730789736276,2.16041814,2432.3,2432.1,0.3264695]
[1730789736474,2.16041814,2432.3,2432.0,4.96073089]
[1730789736669,2.16041814,2432.3,2432.2,0.07918093]
[1730789736876,2.16041814,2432.3,2432.0,4.8815]
[1730789737188,2.16041814,2432.3,2432.1,0.32633674]
[1730789737333,2.16041814,2432.2,2432.1,0.07900107]
[1730789737538,2.16041814,2432.2,2432.1,0.4053931]
[1730789738032,2.16093386,2432.3,2432.1,0.4053931]
[1730789738239,3.06044,2432.4,2432.2,0.32639203]
[1730789738476,3.06044,2432.4,2432.0,6.24746017]
[1730789738679,3.06044,2432.4,2432.1,0.4054629]
[1730789738898,7.17171,2432.4,2432.2,0.32646183]
[1730789739222,7.17171,2432.4,2432.0,0.7697]
[1730789739223,7.17162,2432.4,2432.0,0.7697]
[1730789739428,7.17162,2432.4,2432.3,0.0789611]
[1730789739583,7.17162,2432.4,2432.1,0.32652609]
[1730789739778,7.17162,2432.4,2432.3,0.0789511]
[1730789739979,7.17162,2432.4,2432.1,0.32652609]
[1730789740182,7.17162,2432.4,2432.3,0.0789511]
[1730789740413,7.17162,2432.4,2432.1,0.32652609]
[1730789740616,7.17162,2432.4,2432.3,0.0789511]
[1730789740919,4.11133,2432.3,2432.1,0.32652609]
[1730789741113,4.11133,2432.3,2432.2,0.32653403]
[1730789742822,7.17161,2432.4,2432.2,0.32653403]
[1730789743006,7.17161,2432.4,2432.1,0.32652609]
[1730789743382,7.17161,2432.4,2432.2,0.32654491]
[1730789743592,9.33166019,2432.4,2432.1,0.32652609]
[1730789743805,9.33166019,2432.4,2432.2,0.32655134]
[1730789744005,9.33166019,2432.4,2432.1,0.32652609]
[1730789744203,9.33166019,2432.4,2432.2,0.32655303]
[1730789744426,9.33166019,2432.4,2432.1,0.32652609]
[1730789744632,9.33166019,2432.4,2432.2,0.32655676]
[1730789744818,9.33166019,2432.4,2432.1,0.32652609]
[1730789745004,9.33166019,2432.4,2432.2,0.3265501]
[1730789745201,9.33166019,2432.4,2432.1,0.32652609]
[1730789745408,9.33166019,2432.4,2432.2,0.32653721]
[1730789745706,9.33166019,2432.4,2432.1,0.32652609]
[1730789745907,9.33166019,2432.4,2432.2,0.32650541]
[1730789746107,2.22049019,2432.4,2432.3,0.7802]
[1730789746436,2.22049019,2432.4,2432.3,1.1066281]
[1730789746741,2.22049019,2432.4,2432.3,1.1065301]
[1730789747236,0.06044,2432.4,2432.3,1.1065301]
[1730789748928,0.06044,2432.4,2432.3,1.18519143]
[1730789750236,0.06044,2432.4,2432.3,1.18498243]
[1730789757370,0.06044,2432.4,2432.3,0.85886133]
[1730789757670,0.06044,2432.4,2432.3,1.18468447]
[1730789758052,0.06044,2432.4,2432.3,5.29601447]
[1730789758255,0.06044,2432.4,2432.3,1.18468447]
[1730789758830,0.06044,2432.4,2432.3,5.29601447]
[1730789760657,0.06044,2432.4,2432.3,4.97019133]
[1730789760890,0.06044,2432.4,2432.3,5.29597127]
[1730789761093,0.06044,2432.4,2432.3,4.97019133]
[1730789761457,0.06044,2432.4,2432.3,5.29597015]
[1730789761648,0.06044,2432.4,2432.3,1.18464015]
[1730789762302,4.1716,2432.4,2432.3,0.07866133]
[1730789762650,4.1716,2432.4,2432.0,2.431965]
[1730789762848,4.1716,2432.4,2432.3,0.07845153]
[1730789762849,0.06044,2432.4,2432.3,0.07845153]
[1730789763078,0.06044,2432.4,2432.0,6.543775]
[1730789763389,4.1716,2432.4,2432.1,0.32599876]
[1730789763591,4.1716,2432.4,2432.2,0.40445029]
[1730789763795,0.06044,2432.4,2432.2,0.07845153]
[1730789763953,0.06044,2432.4,2432.0,6.543775]
[1730789764301,0.06044,2432.4,2432.1,0.40449424]
[1730789764609,0.06044,2432.4,2432.2,0.32604271]
[1730789764758,0.06044,2432.4,2432.1,0.07845153]
[1730789764962,0.06044,2432.4,2432.2,0.32607693]
[1730789765160,0.06044,2432.4,2432.0,6.543775]
[1730789765382,0.06044,2432.4,2432.1,0.40453336]
[1730789765580,0.06044,2432.4,2432.2,0.32608183]
[1730789765800,0.06044,2432.4,2432.0,6.543775]
[1730789765975,0.06044,2432.4,2432.1,0.92645457]
[1730789766180,0.06044,2432.4,2432.2,0.32615232]
[1730789766385,0.06044,2432.4,2432.3,0.32615232]
[1730789766562,0.06044,2432.4,2432.3,0.40437405]
[1730789767065,0.06044,2432.4,2432.3,0.07822173]
[1730789767907,0.06044,2432.4,2432.0,5.758075]
[1730789768069,0.06044,2432.4,2432.3,0.07822173]
[1730789768266,0.7951,2432.2,2432.0,1.646265]
[1730789768831,0.7951,2432.2,2431.9,4.11191]
[1730789769016,0.7951,2432.2,2432.0,0.32640738]
[1730789769215,0.7951,2432.2,2431.9,4.11191]
[1730789769524,0.7951,2432.2,2432.0,0.32637574]
[1730789769729,0.7951,2432.2,2432.0,4.11181]
[1730789769931,7.92292,2432.4,2432.1,0.32636128]
[1730789770101,7.92292,2432.4,2432.0,4.11181]
[1730789770302,7.17162,2432.4,2432.2,0.8255]
[1730789770534,0.06044,2432.4,2432.3,0.32627403]
[1730789771237,0.06044,2432.4,2432.1,4.11158]
[1730789771433,0.06044,2432.4,2432.2,0.326289]
[1730789771609,4.17161,2432.4,2432.2,0.326289]
[1730789771818,4.17161,2432.4,2432.0,4.9249]
[1730789772124,0.06044,2432.4,2432.1,0.32633401]
[1730789772335,0.06044,2432.4,2432.2,0.32633401]
[1730789772536,0.06044,2432.4,2432.0,4.9249]
[1730789772734,0.06044,2432.4,2432.1,4.95994597]
[1730789772943,0.06044,2432.4,2432.2,0.32631179]
[1730789773245,0.06044,2432.4,2432.3,0.32631179]
[1730789775850,0.86964,2432.4,2432.3,0.32631179]
[1730789776028,0.86964,2432.4,2432.0,4.90078]
[1730789776362,0.86964,2432.4,2432.1,4.4379535]
[1730789776675,0.86964,2432.4,2432.2,0.3262935]
[1730789776842,0.86964,2432.4,2432.1,4.11166]
[1730789777159,0.86964,2432.4,2432.2,0.32631012]
[1730789777376,0.86964,2432.4,2432.1,4.11166]
[1730789777662,0.86964,2432.4,2432.2,0.32630237]
[1730789777866,0.86964,2432.4,2432.0,0.7891]
[1730789778167,4.98094,2432.4,2432.1,0.32630695]
[1730789778363,4.11135,2432.3,2431.9,4.11193]
[1730789778665,4.11135,2432.3,2432.0,0.32637259]
[1730789778857,4.11135,2432.3,2432.1,0.32637259]
[1730789779168,4.11135,2432.3,2432.1,0.07599828]
[1730789779354,4.11135,2432.3,2431.9,4.11193]
[1730789779553,4.11135,2432.3,2432.0,0.40233984]
[1730789779767,4.11135,2432.3,2432.1,0.32634156]
[1730789779970,4.11135,2432.3,2431.9,4.11193]
[1730789780176,4.11135,2432.3,2432.0,0.40234033]
[1730789780330,4.11135,2432.3,2432.1,0.32634205]
[1730789780531,4.11135,2432.3,2431.9,4.11193]
[1730789780765,4.11135,2432.3,2432.0,0.40232376]
[1730789780968,4.11135,2432.3,2432.1,0.32632548]
[1730789781267,4.11135,2432.3,2431.9,4.11193]
[1730789781574,4.11135,2432.3,2432.0,0.32631004]
[1730789781872,4.11135,2432.3,2432.1,0.40230832]
[1730789782027,4.11135,2432.3,2432.1,0.07599828]
[1730789782431,4.11135,2432.3,2431.9,4.11193]
[1730789782672,4.11135,2432.3,2432.2,0.07599828]
[1730789782856,4.11135,2432.3,2431.9,4.11193]
[1730789783062,4.11135,2432.3,2432.2,0.07599828]
[1730789783245,4.11135,2432.3,2431.9,4.11193]
[1730789783451,4.11135,2432.3,2432.2,0.07609822]
[1730789783652,5.020548,2432.3,2431.9,4.11193]
[1730789783976,4.11135,2432.3,2432.0,0.32631904]
[1730789784149,4.11135,2432.3,2432.1,0.07609822]
[1730789784473,4.11135,2432.3,2431.9,4.11193]
[1730789784774,4.11135,2432.3,2432.0,0.32633559]
[1730789784935,4.11135,2432.3,2432.1,0.07609822]
[1730789785134,5.020548,2432.3,2431.9,4.11193]
[1730789785336,4.11135,2432.3,2432.0,0.40245696]
[1730789785574,7.9809,2432.4,2432.0,0.07609822]
[1730789787667,7.9809,2432.4,2432.1,0.32641762]
[1730789787870,7.9809,2432.4,2432.0,0.07609822]
[1730789788171,7.9809,2432.4,2432.1,0.40251252]
[1730789788373,9.190089,2432.4,2432.1,0.07609822]
[1730789788578,9.190089,2432.4,2431.9,4.1119]
[1730789788883,9.190089,2432.4,2432.0,0.40253199]
[1730789789062,9.190089,2432.4,2432.1,0.32643377]
[1730789789262,9.190089,2432.4,2432.0,0.07609822]
[1730789789495,9.190089,2432.4,2432.1,0.32647276]
[1730789789694,9.190089,2432.4,2432.1,0.07609822]
[1730789790059,9.190089,2432.4,2431.9,4.1119]
[1730789790260,0.06044,2432.4,2432.2,0.07609822]
[1730789790462,0.06044,2432.4,2432.2,4.11148]
[1730789790681,0.06044,2432.4,2432.3,0.07609822]
[1730789790893,0.06044,2432.4,2432.3,0.40251491]
[1730789791059,0.06044,2432.4,2432.3,1.10071669]
[1730789791259,0.06044,2432.4,2432.3,1.17681491]
[1730789792700,0.06044,2432.4,2432.3,5.28814491]
[1730789793061,0.06044,2432.4,2432.3,1.17681491]
[1730789794314,0.06044,2432.4,2432.3,5.28814491]
[1730789794802,0.06044,2432.4,2432.3,4.96172822]
[1730789795011,0.06044,2432.4,2432.3,5.28806019]
[1730789795999,0.06044,2432.4,2432.3,5.28803543]
[1730789798206,0.06044,2432.4,2432.3,4.96172822]
[1730789798421,0.06044,2432.4,2432.3,5.28799342]
[1730789799505,0.06044,2432.4,2432.3,1.17666342]
[1730789800778,0.06044,2432.4,2432.3,5.28799342]
[1730789800992,0.06044,2432.4,2432.3,7.17585663]
[1730789801863,0.06044,2432.4,2432.3,6.32766839]
[1730789802204,0.06044,2432.4,2432.3,5.2879258]
[1730789803570,0.06044,2432.4,2432.3,7.17568365]
[1730789803769,0.06044,2432.4,2432.3,6.65386597]
[1730789804207,0.06044,2432.4,2432.3,7.17568793]
[1730789804503,0.06044,2432.4,2432.3,6.65386597]
[1730789804969,0.06044,2432.4,2432.3,5.2879258]
[1730789805511,0.06044,2432.4,2432.3,4.96172822]
[1730789806005,0.06044,2432.4,2432.3,5.28783543]
[1730789807497,0.06044,2432.4,2432.3,6.73599484]
[1730789807696,0.06044,2432.4,2432.3,7.17547805]
[1730789812112,0.06044,2432.4,2432.3,7.48282289]
[1730789812274,0.06044,2432.4,2432.3,7.65887466]
[1730789813120,0.06044,2432.4,2432.3,6.50367017]
[1730789813415,0.06044,2432.4,2432.3,7.65790781]
[1730789817927,0.06044,2432.4,2432.3,7.48190603]
[1730789818093,0.06044,2432.4,2432.3,7.17464529]
[1730789819523,0.06044,2432.4,2432.3,7.66726678]
[1730789820334,0.06044,2432.4,2432.3,6.64450504]
[1730789820508,0.06044,2432.4,2432.3,7.66680345]
[1730789822788,0.06044,2432.4,2432.3,6.33766839]